bitfinex/quotes_ETHUSD_20250220
["timestamp","ask_amount","ask_price","bid_price","bid_amount"]
[1740085466722,3.63071,2754.3,2753.9,4.41339343]
[1740085467226,3.63061,2754.4,2754.0,3.63099]
[1740085467430,3.63074,2754.3,2753.9,4.41338343]
[1740085467727,3.63062,2754.4,2753.9,4.41338343]
[1740085468106,3.63069,2754.3,2753.9,4.41338343]
[1740085468626,7.26148,2754.3,2753.9,0.78219343]
[1740085468793,3.63087,2754.2,2753.9,0.78219343]
[1740085469331,4.45662,2754.5,2753.9,4.41327343]
[1740085469489,4.45662,2754.5,2754.0,3.631]
[1740085469927,3.6306,2754.4,2754.0,3.631]
[1740085471224,4.45662,2754.5,2754.0,3.631]
[1740085472329,3.63056,2754.4,2754.0,3.631]
[1740085473431,3.63057,2754.4,2754.0,3.63099]
[1740085473798,4.45668,2754.5,2754.1,3.63092]
[1740085473997,4.45668,2754.5,2754.0,4.45989]
[1740085475443,3.63058,2754.4,2754.0,4.45989]
[1740085475650,4.45668,2754.5,2754.1,3.63091]
[1740085475854,8.08718,2754.5,2754.0,0.8289]
[1740085476205,3.63055,2754.4,2754.0,4.45997]
[1740085476436,4.45668,2754.5,2754.0,4.45991]
[1740085476644,0.8262,2754.5,2754.0,4.45991]
[1740085477450,3.63056,2754.4,2754.0,4.45991]
[1740085477772,3.63056,2754.4,2753.9,0.78219343]
[1740085477773,3.63076,2754.3,2753.9,0.78219343]
[1740085477922,4.21042915,2754.4,2753.9,0.78219343]
[1740085478104,3.63087,2754.2,2753.9,0.78219343]
[1740085478433,0.7866,2754.0,2753.9,0.78219343]
[1740085479730,7.42518,2754.0,2753.9,0.78219343]
[1740085480043,7.43268,2754.0,2753.9,0.78219343]
[1740085480333,8.87921902,2754.0,2753.9,0.78219343]
[1740085487245,0.7866,2754.0,2753.9,0.78219343]
[1740085487405,0.7979,2754.7,2753.9,0.78219343]
[1740085487605,0.7979,2754.7,2753.9,4.41337343]
[1740085487820,0.0075,2754.6,2754.5,3.63042]
[1740085488037,0.7979,2754.7,2754.1,3.63095]
[1740085488239,0.7979,2755.0,2754.6,3.63029]
[1740085488441,0.7979,2755.0,2754.7,3.63003]
[1740085488743,3.63003,2754.8,2754.3,4.38381]
[1740085489148,3.63003,2754.8,2754.3,4.64781]
[1740085489543,3.62984,2755.0,2754.4,3.63051]
[1740085490547,3.62984,2755.0,2754.5,3.6304]
[1740085490713,3.62984,2755.0,2754.3,5.22601534]
[1740085490714,7.39759,2755.3,2754.6,3.63027]
[1740085490914,3.0,2755.3,2754.9,0.7924]
[1740085492749,6.62937,2755.3,2754.9,0.7924]
[1740085493140,3.0,2755.3,2754.9,0.7924]
[1740085493314,3.0,2755.3,2754.9,4.42221]
[1740085494611,3.40172015,2755.7,2754.9,1.66931838]
[1740085494809,7.03056015,2755.7,2755.1,3.62955]
[1740085495044,3.0,2755.6,2755.1,3.89355]
[1740085495546,6.62901,2755.6,2755.1,3.89355]
[1740085496326,10.25807,2755.6,2755.1,3.89355]
[1740085496522,6.62901,2755.6,2755.1,0.264]
[1740085496751,10.25809,2755.6,2755.1,0.264]
[1740085497153,3.62914,2755.5,2755.1,0.264]
[1740085497652,3.6291,2755.5,2755.1,0.264]
[1740085499365,7.03106015,2755.4,2754.9,4.68617]
[1740085499965,3.62934,2755.4,2754.9,4.68617]
[1740085500142,3.62934,2755.4,2755.0,3.62976]
[1740085500352,10.25809,2755.6,2755.0,3.62976]
[1740085500553,3.62913,2755.5,2755.0,3.62976]
[1740085502075,3.62924,2755.4,2755.0,3.62976]
[1740085504382,3.62924,2755.4,2754.9,1.0564]
[1740085504590,3.62924,2755.4,2754.9,4.68628]
[1740085505913,3.62924,2755.4,2754.9,1.0564]
[1740085506108,3.62924,2755.4,2754.9,4.68623]
[1740085506906,3.62939,2755.3,2754.9,4.68623]
[1740085508306,3.62912,2755.5,2754.9,4.68623]
[1740085508510,3.62924,2755.4,2754.9,4.68623]
[1740085509389,4.63228402,2755.5,2754.9,4.68621]
[1740085509577,3.6292,2755.5,2754.9,8.31604]
[1740085510008,3.6292,2755.5,2754.9,4.68621]
[1740085510229,3.62924,2755.4,2754.9,4.68621]
[1740085511719,6.62899,2755.6,2754.9,4.68621]
[1740085512020,3.0,2755.6,2755.2,3.62949]
[1740085512318,3.0,2755.6,2755.3,3.62925]
[1740085512524,3.0,2755.6,2755.3,7.25855]
[1740085512823,3.0,2755.6,2755.2,0.7669]
[1740085512824,3.62899,2755.6,2755.2,0.7669]
[1740085513049,3.62899,2755.6,2755.2,1.206543]
[1740085513432,3.62918,2755.5,2755.2,1.206543]
[1740085513722,7.03090015,2755.5,2755.2,0.7669]
[1740085513929,10.66009015,2755.5,2755.2,0.7669]
[1740085514223,3.6293,2755.4,2755.2,0.7669]
[1740085515027,7.03090015,2755.5,2754.9,0.264]
[1740085515028,3.62976,2755.0,2754.9,0.827]
[1740085515245,3.62991,2754.9,2754.4,4.45745]
[1740085515453,3.63009,2754.8,2754.4,1.091]
[1740085515602,3.6305,2754.5,2754.3,8.154]
[1740085515805,3.63055,2754.4,2754.3,8.154]
[1740085516168,3.63055,2754.4,2754.0,0.0968]
[1740085516169,3.63095,2754.1,2754.0,0.0968]
[1740085516321,7.03267015,2754.1,2754.0,0.0968]
[1740085517126,3.40172015,2754.1,2754.0,0.0968]
[1740085517332,3.63063,2754.4,2754.0,0.876]
[1740085518137,11.08326,2754.6,2754.0,0.876]
[1740085518427,6.63029,2754.6,2754.0,1.40493234]
[1740085518613,3.63056,2754.4,2754.0,1.40493234]
[1740085518814,3.63056,2754.4,2754.0,0.876]
[1740085518815,10.66292015,2754.4,2754.0,0.876]
[1740085519135,3.6307,2754.3,2754.0,0.0968]
[1740085519698,7.03228015,2754.4,2754.0,0.0968]
[1740085520232,3.63075,2754.3,2754.0,0.0968]
[1740085520716,3.63082,2754.2,2754.0,0.0968]
[1740085521836,3.63095,2754.1,2754.0,0.0968]
[1740085524435,3.63083,2754.2,2754.0,0.0968]
[1740085526136,3.63049,2754.5,2754.0,3.72787]
[1740085526311,3.63068,2754.3,2754.0,0.63096634]
[1740085526502,3.63068,2754.3,2754.0,0.0968]
[1740085526703,3.0,2754.4,2754.0,0.0968]
[1740085527100,6.63056,2754.4,2754.0,0.0968]
[1740085527442,3.0,2754.4,2754.0,3.72784]
[1740085527732,3.0,2754.4,2754.0,4.62512334]
[1740085528233,7.80130015,2754.8,2754.2,0.819]
[1740085528426,3.63027,2754.7,2754.2,0.819]
[1740085529413,3.63027,2754.7,2754.2,4.44971]
[1740085530222,3.63027,2754.7,2754.2,0.819]
[1740085530429,3.63032,2754.6,2754.2,0.819]
[1740085530622,3.63027,2754.7,2754.2,6.09234921]
[1740085531430,7.03175015,2754.8,2754.3,3.63065]
[1740085531653,7.03175015,2754.8,2754.2,6.09234921]
[1740085532033,7.03175015,2754.8,2754.3,3.63067]
[1740085532730,3.40172015,2754.8,2754.3,3.63067]
[1740085532925,9.1295,2755.0,2754.6,3.63019]
[1740085532926,5.36,2755.0,2754.6,3.63019]
[1740085533125,5.36,2755.0,2754.7,0.7662]
[1740085533345,5.36,2755.0,2754.7,4.39628]
[1740085533651,5.36,2755.0,2754.8,3.63]
[1740085533852,6.62943,2755.3,2754.8,3.63]
[1740085534149,3.62943,2755.3,2754.8,4.432636]
[1740085535131,3.62943,2755.3,2754.8,4.432566]
[1740085535755,3.62951,2755.2,2754.8,4.432566]
[1740085535933,3.62951,2755.2,2754.8,4.3734517]
[1740085536136,3.62951,2755.2,2754.8,0.7435217]
[1740085536330,0.755,2755.7,2754.9,0.7692]
[1740085536531,3.62898,2755.6,2755.1,3.62954]
[1740085536719,3.62898,2755.6,2755.0,3.62976]
[1740085536919,3.84011815,2755.6,2754.9,0.7692]
[1740085537258,7.03115015,2755.3,2754.9,1.0332]
[1740085538257,7.03115015,2755.3,2754.9,0.7692]
[1740085538958,3.62943,2755.3,2754.9,0.7692]
[1740085539758,3.6293,2755.4,2754.9,4.39901]
[1740085540629,3.62944,2755.3,2754.9,0.7692]
[1740085540827,3.62944,2755.3,2754.9,4.39907]
[1740085541425,3.62924,2755.4,2754.9,4.39907]
[1740085541625,3.62924,2755.4,2754.9,0.7692]
[1740085541839,4.37617582,2755.4,2754.9,0.7692]
[1740085542034,3.62952,2755.2,2754.9,0.7692]
[1740085542360,3.6298,2755.0,2754.7,1.54406627]
[1740085542562,3.62976,2755.0,2754.7,0.78196627]
[1740085542723,3.63002,2754.8,2754.7,0.78196627]
[1740085543061,4.355998,2754.8,2754.7,0.78196627]
[1740085544262,3.63002,2754.8,2754.7,0.78196627]
[1740085544965,3.6299,2754.9,2754.7,0.78196627]
[1740085545627,3.63002,2754.8,2754.7,0.78196627]
[1740085546668,3.6299,2754.9,2754.7,0.78196627]
[1740085547645,3.63002,2754.8,2754.7,0.78196627]
[1740085552968,8.48818302,2754.8,2754.7,0.78196627]
[1740085555226,13.84818302,2754.8,2754.7,0.78196627]
[1740085558234,13.84818302,2754.8,2754.7,6.27e-06]
[1740085561098,14.56005666,2754.8,2754.7,6.27e-06]
[1740085562229,13.84818302,2754.8,2754.7,6.27e-06]
[1740085564445,13.46540317,2754.8,2754.7,6.27e-06]
[1740085564606,12.39924015,2754.8,2754.7,6.27e-06]
[1740085565364,15.39924015,2754.8,2754.7,6.27e-06]
[1740085566931,15.40674015,2754.8,2754.7,6.27e-06]
[1740085567129,16.22994015,2754.8,2754.7,6.27e-06]
[1740085568935,16.95744813,2754.8,2754.7,6.27e-06]
[1740085569134,19.01618194,2754.8,2754.7,6.27e-06]
[1740085569661,18.28867396,2754.8,2754.7,6.27e-06]
[1740085576462,21.69039411,2754.8,2754.7,6.27e-06]
[1740085576664,3.63845,2754.1,2754.0,0.0968]
[1740085576895,15.40017015,2754.1,2754.0,0.0968]
[1740085577294,15.88603195,2754.1,2754.0,0.0968]
[1740085578064,15.40017015,2754.1,2754.0,0.0968]
[1740085581311,15.67342985,2754.1,2754.0,0.0968]
[1740085582096,15.68092985,2754.1,2754.0,0.0968]
[1740085582288,15.68092985,2754.1,2753.0,0.56874417]
[1740085582289,3.63187,2753.4,2753.3,0.7534]
[1740085582597,7.03359015,2753.4,2753.3,0.7534]
[1740085582802,7.03359015,2753.4,2753.0,0.56874417]
[1740085582803,3.63224,2753.2,2753.1,0.7646]
[1740085583201,6.40172015,2753.4,2753.1,0.7646]
[1740085583403,3.63206,2753.3,2753.1,0.7646]
[1740085586536,3.632,2753.3,2753.1,0.7646]
[1740085587621,7.26409,2753.3,2753.1,0.7646]
[1740085587942,3.632,2753.3,2753.1,0.7646]
[1740085588608,7.26408,2753.3,2753.1,0.7646]
[1740085588940,3.63213,2753.2,2753.1,0.7646]
[1740085589144,3.632,2753.3,2753.1,0.7646]
[1740085590742,3.63213,2753.2,2753.1,0.7646]
[1740085591361,3.632,2753.3,2753.1,0.7646]
[1740085591839,7.26412,2753.3,2753.1,0.7646]
[1740085592628,3.63213,2753.2,2753.1,0.7646]
[1740085593109,3.0,2753.4,2753.1,0.7646]
[1740085593110,3.63208,2753.3,2753.1,0.7646]
[1740085593739,3.63213,2753.2,2753.1,0.7646]
[1740085593940,3.63253,2752.9,2752.7,0.7589]
[1740085594339,10.66646015,2753.1,2752.7,0.7589]
[1740085594647,3.63242,2753.0,2752.7,0.7589]
[1740085596560,7.03409015,2753.1,2752.7,0.7589]
[1740085596860,3.63237,2753.1,2752.7,0.7589]
[1740085597166,3.63243,2753.0,2752.7,0.7589]
[1740085597361,3.63237,2753.1,2752.7,0.7589]
[1740085597554,7.26476,2753.1,2752.7,0.7589]
[1740085598165,3.63241,2753.0,2752.7,0.7589]
[1740085599965,3.6324,2753.0,2752.7,0.7589]
[1740085600166,7.03438015,2752.8,2752.6,0.68253593]
[1740085600371,4.44299,2752.7,2752.6,0.68253593]
[1740085601144,3.63327,2752.4,2752.1,1.38856073]
[1740085602262,3.63308,2752.5,2752.1,1.38856073]
[1740085602972,7.03445015,2752.8,2752.2,3.63337]
[1740085603274,3.0,2752.8,2752.4,3.63312]
[1740085603451,3.0,2752.8,2752.3,0.779]
[1740085604554,6.63267,2752.8,2752.3,0.779]
[1740085604757,6.63267,2752.8,2752.3,4.41232]
[1740085604941,3.0,2752.8,2752.3,4.41232]
[1740085605692,6.63268,2752.8,2752.3,4.41232]
[1740085606204,7.03485015,2752.5,2752.3,0.779]
[1740085606376,10.66802015,2752.5,2752.1,1.64986073]
[1740085606542,3.6332,2752.4,2752.1,1.38586073]
[1740085607374,7.03478015,2752.5,2752.1,1.38586073]
[1740085607579,3.63345,2752.2,2752.1,0.56906073]
[1740085607881,7.03517015,2752.2,2752.1,0.56906073]
[1740085610806,3.63343,2752.3,2752.1,1.32366073]
[1740085611013,6.63319,2752.4,2752.1,1.32366073]
[1740085611219,3.0,2752.4,2752.1,1.32366073]
[1740085611860,3.40172015,2752.6,2752.1,4.95712073]
[1740085612093,4.70363876,2752.6,2752.1,1.32366073]
[1740085612310,3.0,2752.4,2752.1,1.32366073]
[1740085612473,6.63324,2752.4,2752.1,1.32366073]
[1740085613495,3.0,2752.5,2752.1,1.32366073]
[1740085613796,6.63308,2752.5,2752.1,1.32366073]
[1740085614092,3.63308,2752.5,2752.1,1.32366073]
[1740085615083,3.40172015,2752.6,2752.1,1.32366073]
[1740085615390,3.63306,2752.5,2752.1,1.32366073]
[1740085615590,3.0,2752.8,2752.1,1.8193978]
[1740085615795,6.63266,2752.8,2752.2,3.63339]
[1740085616300,3.0,2752.8,2752.3,0.7526]
[1740085616462,3.0,2752.8,2752.5,0.7759]
[1740085617009,5.36,2752.9,2752.5,0.7759]
[1740085617295,5.36,2752.9,2752.6,3.63286]
[1740085617480,5.36,2752.9,2752.5,4.67295]
[1740085618073,8.99255,2752.9,2752.5,1.0399]
[1740085618292,3.63269,2752.8,2752.5,1.0399]
[1740085618598,7.03471015,2752.6,2752.3,0.7759]
[1740085618961,3.63309,2752.5,2752.3,0.7759]
[1740085619494,7.03471015,2752.6,2752.3,0.7759]
[1740085619694,3.63299,2752.6,2752.3,0.7759]
[1740085619994,7.26603,2752.6,2752.3,0.7759]
[1740085620194,3.63299,2752.6,2752.3,0.7759]
[1740085620582,7.26601,2752.6,2752.3,0.7759]
[1740085621104,3.63332,2752.4,2752.2,0.264]
[1740085621268,3.63332,2752.3,2752.2,0.264]
[1740085621466,3.63332,2752.4,2752.2,0.264]
[1740085621794,7.2666,2752.4,2752.2,0.264]
[1740085621988,3.63328,2752.4,2752.2,0.264]
[1740085622590,7.26656,2752.4,2752.2,0.264]
[1740085622892,3.63328,2752.4,2752.2,0.264]
[1740085624091,3.63344,2752.3,2752.1,0.56906073]
[1740085624292,3.63367,2752.1,2751.7,0.8195]
[1740085624606,3.63372,2752.0,2751.8,0.56914607]
[1740085624796,3.63385,2751.9,2751.8,0.56914607]
[1740085626027,3.63372,2752.0,2751.8,0.56914607]
[1740085626336,3.63385,2751.9,2751.8,0.56914607]
[1740085626849,3.997235,2751.9,2751.5,0.70997395]
[1740085627026,3.997235,2751.9,2751.4,0.7825]
[1740085627027,3.6343,2751.6,2751.4,0.7825]
[1740085627203,3.6343,2751.6,2751.4,0.56919532]
[1740085627204,3.63431,2751.6,2751.4,0.56919532]
[1740085628729,3.63459,2751.4,2751.1,1.00604589]
[1740085628949,3.63472,2751.3,2751.1,0.19914589]
[1740085629152,3.63477,2751.2,2751.1,0.19914589]
[1740085629337,4.39367,2751.2,2751.0,0.56925833]
[1740085629542,3.6349,2751.1,2751.0,0.56925833]
[1740085630042,3.6301,2751.1,2751.0,0.56925833]
[1740085630242,3.6349,2751.1,2751.0,0.56925833]
[1740085631043,3.0,2751.3,2751.0,0.56925833]
[1740085631245,3.63478,2751.2,2751.0,0.56925833]
[1740085631768,3.0,2751.3,2751.0,0.56925833]
[1740085632077,3.63438,2751.5,2751.0,0.56925833]
[1740085632631,6.63438,2751.5,2751.0,0.56925833]
[1740085633748,6.63438,2751.5,2751.1,0.7527]
[1740085635773,5.36,2751.6,2751.1,0.7527]
[1740085635963,5.36,2751.6,2751.2,3.63465]
[1740085636340,5.36,2751.6,2751.3,3.63458]
[1740085636741,5.36,2751.6,2751.1,4.38749]
[1740085636944,3.63449,2751.5,2751.1,0.7527]
[1740085637170,3.6346,2751.4,2751.0,0.56925833]
[1740085639365,6.63483,2751.2,2751.0,0.56925833]
[1740085639570,3.6349,2751.1,2750.8,8.162]
[1740085639964,4.45963,2751.2,2750.8,8.162]
[1740085640198,3.63505,2751.0,2750.8,8.162]
[1740085640370,3.63517,2750.9,2750.8,8.162]
[1740085641935,3.0,2750.9,2750.3,0.56943653]
[1740085642261,7.03710015,2750.8,2750.3,0.56943653]
[1740085642442,3.0,2750.8,2750.3,4.20536653]
[1740085642769,3.0,2750.8,2750.3,0.56943653]
[1740085644157,3.0,2750.8,2750.3,4.20536653]
[1740085645260,3.63531,2750.8,2750.3,4.20536653]
[1740085646871,3.0,2750.9,2750.4,3.63579]
[1740085647253,6.63518,2750.9,2750.4,3.63579]
[1740085647462,6.63518,2750.9,2750.3,0.56943653]
[1740085648180,3.63531,2750.8,2750.3,0.56943653]
[1740085648356,10.27043,2750.9,2750.3,0.56943653]
[1740085648559,6.63518,2750.9,2750.3,0.56943653]
[1740085649045,3.63538,2750.8,2750.3,0.56943653]
[1740085649574,3.63552,2750.7,2750.3,0.56943653]
[1740085649947,3.63575,2750.5,2749.9,3.63643]
[1740085650275,3.63544,2750.7,2750.1,0.56948588]
[1740085650481,3.63562,2750.6,2750.1,0.56948588]
[1740085650774,3.64293,2750.7,2750.1,1.17106025]
[1740085650965,3.63564,2750.6,2750.1,0.56948588]
[1740085651166,3.63576,2750.5,2750.1,0.56948588]
[1740085651569,6.40172015,2750.5,2750.1,0.56948588]
[1740085651768,6.40172015,2750.5,2749.6,4.18676]
[1740085651769,0.8145,2750.4,2749.8,0.7923]
[1740085651956,0.8145,2750.4,2749.6,1.0563]
[1740085651957,3.63624,2750.1,2749.6,1.0563]
[1740085652162,3.63624,2750.1,2749.7,0.56955337]
[1740085652357,3.40172015,2750.2,2749.7,0.56955337]
[1740085652559,3.63611,2750.2,2749.7,4.20629337]
[1740085653083,3.63611,2750.2,2749.7,0.56955337]
[1740085653464,3.63611,2750.2,2749.7,4.20630337]
[1740085653788,3.63611,2750.2,2749.7,0.56955337]
[1740085654164,3.63639,2750.0,2749.7,0.56955337]
[1740085654370,3.63661,2749.9,2749.7,0.56955337]
[1740085655280,3.63631,2750.1,2749.7,0.56955337]
[1740085655486,3.63636,2750.0,2749.7,0.56955337]
[1740085656589,3.6365,2749.9,2749.7,0.56955337]
[1740085657411,3.64383,2750.1,2749.7,0.56955337]
[1740085657716,3.63637,2750.0,2749.7,0.56955337]
[1740085658815,1.24055901,2750.0,2749.7,0.56955337]
[1740085659007,3.63662,2749.8,2749.7,0.56955337]
[1740085659589,5.05355901,2750.0,2749.7,0.56955337]
[1740085659754,3.63662,2749.8,2749.7,0.56955337]
[1740085659960,6.63662,2749.8,2749.5,8.44768136]
[1740085660163,3.63687,2749.7,2749.4,0.56963553]
[1740085666705,3.63696,2749.6,2749.4,0.56963553]
[1740085667841,3.63702,2749.5,2749.4,0.56963553]
[1740085668002,4.43101,2749.6,2749.4,0.56963553]
[1740085669940,3.63691,2749.6,2749.4,0.56963553]
[1740085674268,3.0,2749.8,2749.4,0.56963553]
[1740085674442,5.36,2750.1,2750.0,3.63636]
[1740085674764,5.36,2750.1,2750.0,4.46316]
[1740085674933,5.36,2750.1,2750.0,0.8268]
[1740085675339,3.63676,2749.7,2749.6,0.8268]
[1740085675537,3.63702,2749.5,2749.4,0.56963553]
[1740085675987,4.23022015,2749.7,2749.1,1.56206146]
[1740085675988,3.63727,2749.4,2749.1,0.8268]
[1740085676269,3.63738,2749.3,2749.1,1.3964731]
[1740085676570,3.63742,2749.2,2749.1,1.3964731]
[1740085676873,3.63728,2749.4,2749.1,1.3964731]
[1740085677465,3.0,2749.6,2749.1,1.3964731]
[1740085677636,3.63724,2749.4,2749.1,1.3964731]
[1740085678055,7.27448,2749.4,2749.1,1.3964731]
[1740085678286,3.63704,2749.5,2749.1,1.3964731]
[1740085678586,3.63716,2749.4,2749.1,1.3964731]
[1740085679122,3.0,2749.6,2749.1,5.0340231]
[1740085680055,6.63699,2749.6,2749.1,5.0340231]
[1740085681002,3.63708,2749.5,2749.1,1.3964731]
[1740085681801,3.63716,2749.4,2749.1,1.3964731]
[1740085684384,3.63716,2749.4,2748.8,0.414466]
[1740085684385,4.40794,2749.3,2748.8,4.557496]
[1740085684762,4.40794,2749.3,2748.9,0.56969729]
[1740085685004,0.7706,2749.3,2748.9,4.20750729]
[1740085685999,0.7706,2749.3,2748.9,0.56969729]
[1740085686200,0.7706,2749.3,2748.9,4.20750729]
[1740085686403,7.03888015,2749.4,2748.9,4.20750729]
[1740085688109,3.63729,2749.3,2748.9,4.20750729]
[1740085688705,3.63729,2749.3,2748.9,0.56969729]
[1740085689009,4.46888,2749.0,2748.8,0.150466]
[1740085689795,3.63781,2748.9,2748.8,0.150466]
[1740085691182,3.65281,2748.9,2748.8,0.150466]
[1740085691387,9.04493202,2748.9,2748.8,0.150466]
[1740085693669,5.39962202,2748.9,2748.8,0.150466]
[1740085693877,3.0,2748.9,2748.8,0.150466]
[1740085694100,5.36,2749.0,2748.8,0.150466]
[1740085694399,3.40172015,2748.9,2748.8,0.150466]
[1740085694692,10.84143015,2748.9,2748.8,0.150466]
[1740085696201,16.20143015,2748.9,2748.8,0.150466]
[1740085696365,18.18534217,2748.9,2748.8,0.150466]
[1740085698607,7.42611,2748.3,2748.2,0.02]
[1740085698780,16.18783015,2748.3,2748.2,0.02]
[1740085699104,16.18783015,2748.3,2748.2,1e-05]
[1740085700205,16.46467816,2748.3,2748.2,1e-05]
[1740085700500,17.77229757,2748.3,2748.2,1e-05]
[1740085703495,11.76922015,2748.3,2748.2,1e-05]
[1740085703690,8.76922015,2748.3,2748.2,1e-05]
[1740085704077,11.76922015,2748.3,2748.2,1e-05]
[1740085704281,8.76172015,2748.3,2748.2,1e-05]
[1740085704686,11.76172015,2748.3,2748.2,1e-05]
[1740085708398,15.40033015,2748.3,2748.2,1e-05]
[1740085708577,11.76172015,2748.3,2748.2,1e-05]
[1740085709480,8.36,2748.3,2748.2,1e-05]
[1740085711188,3.0,2748.3,2748.2,1e-05]
[1740085711896,3.63818,2748.7,2748.2,1e-05]
[1740085712424,3.0,2748.6,2748.2,1e-05]
[1740085712720,3.0,2748.6,2748.2,0.441932]
[1740085713121,3.0,2748.6,2748.2,1e-05]
[1740085713122,3.63837,2748.5,2748.2,1e-05]
[1740085713616,3.63853,2748.4,2748.2,1e-05]
[1740085714319,0.0075,2748.5,2748.2,1e-05]
[1740085714624,3.63854,2748.4,2748.2,1e-05]
[1740085714998,10.04033015,2748.3,2748.2,1e-05]
[1740085715227,12.23776717,2748.3,2748.2,1e-05]
[1740085716109,8.59915717,2748.3,2748.2,1e-05]
[1740085716318,10.05533015,2748.3,2748.2,1e-05]
[1740085717026,15.41533015,2748.3,2748.2,1e-05]
[1740085720499,16.19013015,2748.3,2748.2,1e-05]
[1740085725535,15.41533015,2748.3,2748.2,1e-05]
[1740085727016,16.21373015,2748.3,2748.2,1e-05]
[1740085727223,18.19895717,2748.3,2748.2,1e-05]
[1740085736449,17.40055717,2748.3,2748.2,1e-05]
[1740085739456,18.20265717,2748.3,2748.2,1e-05]
[1740085754569,17.40055717,2748.3,2748.2,1e-05]
[1740085756137,15.41533015,2748.3,2748.2,1e-05]
[1740085756345,15.41533015,2748.3,2748.2,0.81921]
[1740085756850,9.00611,2748.3,2748.2,0.81921]
[1740085757067,9.01361,2748.3,2748.2,0.81921]
[1740085757360,12.01361,2748.3,2748.2,0.81921]
[1740085757527,16.98054515,2748.3,2748.2,1e-05]
[1740085758030,8.375,2748.3,2748.2,0.81921]
[1740085758227,12.01361,2748.3,2748.2,0.81921]
[1740085759536,15.41533015,2748.3,2748.2,1e-05]
[1740085761484,16.18973015,2748.3,2748.2,1e-05]
[1740085761661,12.01361,2748.3,2748.2,1e-05]
[1740085761845,15.41533015,2748.3,2748.2,1e-05]
[1740085762246,11.77672015,2748.3,2748.2,1e-05]
[1740085762461,15.41533015,2748.3,2748.2,0.79701]
[1740085762667,17.32071117,2748.3,2748.2,1e-05]
[1740085763559,18.09561117,2748.3,2748.2,1e-05]
[1740085764139,18.64561117,2748.3,2748.2,1e-05]
[1740085764363,18.62831117,2748.3,2748.2,1e-05]
[1740085767749,18.07831117,2748.3,2748.2,1e-05]
[1740085767980,17.32071117,2748.3,2748.2,1e-05]
[1740085768152,12.41533015,2748.3,2748.2,1e-05]
[1740085769265,15.41533015,2748.3,2748.2,1e-05]
[1740085769466,12.41533015,2748.3,2748.2,0.79721]
[1740085769745,15.41533015,2748.3,2748.2,0.79721]
[1740085771066,17.32071117,2748.3,2748.2,1e-05]
[1740085775478,18.15031117,2748.3,2748.2,1e-05]
[1740085779520,18.70031117,2748.3,2748.2,1e-05]
[1740085782193,18.15031117,2748.3,2748.2,1e-05]
[1740085785635,17.32071117,2748.3,2748.2,1e-05]
[1740085801674,15.41533015,2748.3,2748.2,1e-05]
[1740085801895,15.41533015,2748.3,2748.2,0.81911]
[1740085802899,15.41533015,2748.3,2748.2,1e-05]
[1740085803393,16.21843015,2748.3,2748.2,1e-05]
[1740085803800,16.76843015,2748.3,2748.2,1e-05]
[1740085803972,18.80912117,2748.3,2748.2,1e-05]
[1740085804759,18.79272117,2748.3,2748.2,1e-05]
[1740085805374,3.6402,2747.1,2747.0,0.7546]
[1740085806185,3.64099,2746.6,2746.4,0.8176]
[1740085806354,3.40172015,2746.7,2746.4,0.8176]
[1740085806557,3.64096,2746.6,2746.4,0.8176]
[1740085807089,5.36,2747.0,2746.6,3.64081]
[1740085807299,5.36,2747.0,2746.9,0.8176]
[1740085808059,5.36,2747.0,2746.9,4.45806]
[1740085808359,5.36,2747.0,2746.9,0.8176]
[1740085809109,9.00033,2747.0,2746.9,0.8176]
[1740085809460,9.01533,2747.0,2746.9,0.8176]
[1740085809769,3.64073,2746.7,2746.6,0.7694]
[1740085813720,3.64073,2746.7,2746.2,0.265]
[1740085813721,3.64114,2746.4,2746.3,0.7694]
[1740085813924,3.65614,2746.4,2746.3,0.7694]
[1740085814123,3.64139,2746.2,2746.1,0.7694]
[1740085815915,3.64139,2746.2,2746.0,0.150466]
[1740085815916,3.64152,2746.1,2746.0,0.150466]
[1740085816628,3.65652,2746.1,2746.0,0.150466]
[1740085817227,10.98661002,2746.1,2746.0,0.150466]
[1740085817389,11.74701002,2746.1,2746.0,0.150466]
[1740085820958,15.57183374,2746.1,2746.0,0.150466]
[1740085821329,15.02183374,2746.1,2746.0,0.150466]
[1740085825362,5.36,2746.1,2746.0,0.150466]
[1740085825663,3.64152,2746.1,2746.0,0.150466]
[1740085827536,3.65652,2746.1,2746.0,0.150466]
[1740085829971,12.84952,2746.1,2746.0,0.150466]
[1740085830137,13.39952,2746.1,2746.0,0.150466]
[1740085830336,3.64285,2745.1,2745.0,0.813423]
[1740085830537,7.05207015,2745.1,2745.0,0.007123]
[1740085830781,7.05957015,2745.1,2745.0,0.007123]
[1740085830944,11.44257015,2745.1,2745.0,3e-06]
[1740085831144,0.833,2744.7,2743.5,0.8063]
[1740085831431,0.0075,2744.2,2743.9,0.57075414]
[1740085831647,3.6442,2744.1,2743.5,4.45119]
[1740085832254,0.015,2744.2,2743.5,4.45119]
[1740085832455,0.015,2744.2,2743.6,3.64482]
[1740085832672,0.015,2744.2,2743.6,4.089932]
[1740085832869,3.0,2744.5,2743.6,0.445112]
[1740085833083,3.40172015,2744.6,2744.1,3.64418]
[1740085833286,3.64352,2744.6,2744.0,0.8063]
[1740085833485,3.64379,2744.4,2744.0,0.8063]
[1740085833698,3.64366,2744.5,2744.0,0.8063]
[1740085833904,3.64377,2744.5,2744.0,0.8063]
[1740085834058,0.015,2744.4,2744.0,0.8063]
[1740085834259,3.65888,2744.4,2744.0,0.8063]
[1740085834458,3.64392,2744.3,2744.0,0.8063]
[1740085834806,3.64418,2744.1,2744.0,0.8063]
[1740085836494,3.64411,2744.2,2743.7,0.7539]